bitfinex/quotes_SOLUSD_20250216
["timestamp","ask_amount","ask_price","bid_price","bid_amount"]
[1739709026635,82.6,193.29,193.26,0.03]
[1739709028632,82.6,193.29,193.22,5.4782]
[1739709028835,82.6,193.28,193.22,5.4782]
[1739709031545,82.6,193.28,193.22,7.0025]
[1739709034829,82.6,193.28,193.22,1.5243]
[1739709036030,82.6,193.28,193.22,1.5543]
[1739709036427,82.663,193.28,193.22,1.5543]
[1739709038027,0.063,193.28,193.27,20.0]
[1739709038229,0.063,193.28,193.27,36.04164853]
[1739709038428,0.063,193.33,193.3,1.0]
[1739709038640,0.063,193.33,193.31,20.83904853]
[1739709039047,0.063,193.33,193.31,19.83904853]
[1739709039628,0.063,193.33,193.31,6.4272]
[1739709040548,0.063,193.33,193.27,1.6298]
[1739709041246,0.063,193.33,193.28,13.41184853]
[1739709041748,0.063,193.33,193.28,14.41184853]
[1739709043356,0.063,193.33,193.31,14.41184853]
[1739709044042,0.063,193.33,193.32,1.0]
[1739709044551,0.063,193.33,193.32,7.4272]
[1739709044726,0.063,193.33,193.32,20.83904853]
[1739709046332,0.063,193.33,193.32,19.83904853]
[1739709046532,0.063,193.33,193.32,49.83904853]
[1739709046732,0.063,193.33,193.32,50.83904853]
[1739709047034,0.063,193.33,193.32,49.83904853]
[1739709047453,0.063,193.33,193.32,19.83904853]
[1739709048759,0.063,193.33,193.32,19.78416163]
[1739709051267,0.063,193.33,193.3,13.41184853]
[1739709051761,0.063,193.33,193.32,33.41184853]
[1739709054854,0.063,193.33,193.32,20.0]
[1739709060466,0.063,193.33,193.28,0.03]
[1739709061855,82.6,193.32,193.28,0.03]
[1739709062170,82.6,193.31,193.28,0.03]
[1739709062549,82.6,193.3,193.28,0.03]
[1739709067284,0.063,193.33,193.28,0.03]
[1739709067968,0.063,193.33,193.25,30.94184853]
[1739709068170,82.6,193.32,193.25,30.94184853]
[1739709068476,82.6,193.32,193.22,1.03]
[1739709068783,82.6,193.32,193.23,13.41184853]
[1739709069082,82.6,193.32,193.22,0.03]
[1739709069781,82.6,193.32,193.22,13.44184853]
[1739709070657,1.6188,193.31,193.22,13.44184853]
[1739709070854,1.6188,193.31,193.22,0.03]
[1739709072059,1.6188,193.31,193.25,0.03]
[1739709072377,82.6,193.3,193.25,0.03]
[1739709072579,20.0,193.27,193.25,0.03]
[1739709072774,82.6,193.26,193.25,0.03]
[1739709073484,20.0,193.28,193.25,0.03]
[1739709083368,0.063,193.33,193.25,13.44184853]
[1739709083897,0.063,193.33,193.25,0.03]
[1739709086120,20.063,193.33,193.25,0.03]
[1739709086411,82.6,193.32,193.25,0.03]
[1739709087707,20.0,193.29,193.25,0.03]
[1739709087894,82.6,193.28,193.25,0.03]
[1739709088828,20.0,193.26,193.25,0.03]
[1739709089398,20.0,193.29,193.25,0.03]
[1739709090596,1.0,193.28,193.25,0.03]
[1739709091823,21.0,193.29,193.25,0.03]
[1739709092004,1.0,193.28,193.25,0.03]
[1739709092523,21.0,193.29,193.25,0.03]
[1739709092819,1.0,193.28,193.25,0.03]
[1739709094918,20.0,193.27,193.25,0.03]
[1739709096814,82.6,193.26,193.25,0.03]
[1739709102732,20.0,193.27,193.25,0.03]
[1739709105326,1.0,193.26,193.25,0.03]
[1739709107219,20.0,193.27,193.25,0.03]
[1739709110746,20.0,193.29,193.25,0.03]
[1739709111954,1.5124,193.3,193.25,0.03]
[1739709112841,20.0,193.29,193.25,0.03]
[1739709116959,21.0,193.29,193.25,0.03]
[1739709120859,20.0,193.29,193.25,0.03]
[1739709121059,21.0,193.29,193.25,0.03]
[1739709125172,20.0,193.26,193.25,0.03]
[1739709125360,20.0,193.25,193.22,0.03]
[1739709125549,82.6,193.24,193.22,0.03]
[1739709127950,82.6,193.23,193.22,0.03]
[1739709132464,13.41184853,193.25,193.22,0.03]
[1739709132672,14.41184853,193.23,193.22,0.03]
[1739709134679,20.0,193.2,193.16,0.03]
[1739709138779,20.0,193.17,193.16,0.03]
[1739709144491,20.0,193.18,193.16,0.03]
[1739709155276,21.0,193.18,193.16,0.03]
[1739709155477,20.0,193.18,193.16,0.03]
[1739709157111,21.0,193.18,193.16,0.03]
[1739709167301,20.0,193.18,193.16,0.03]
[1739709167615,21.0,193.18,193.16,0.03]
[1739709172914,20.0,193.18,193.16,0.03]
[1739709173521,20.0,193.17,193.16,0.03]
[1739709183006,33.41184853,193.17,193.16,0.03]
[1739709183202,1.0,193.16,193.15,0.03]
[1739709183403,15.41184853,193.16,193.15,0.03]
[1739709183710,20.0,193.11,193.05,0.03]
[1739709185419,20.0,193.16,193.05,0.03]
[1739709186546,28.08559557,193.16,193.05,0.03]
[1739709186720,8.08559557,193.16,193.05,13.44184853]
[1739709187053,82.6,193.15,193.07,13.41184853]
[1739709187242,82.6,193.15,193.08,8.0761]
[1739709187534,82.6,193.15,193.09,1.5731]
[1739709187717,82.6,193.15,193.1,6.503]
[1739709189622,82.6,193.15,193.1,6.533]
[1739709189821,82.6,193.15,193.1,0.03]
[1739709190617,82.6,193.14,193.1,0.03]
[1739709193143,20.0,193.11,193.1,0.03]
[1739709193638,20.0,193.15,193.1,0.03]
[1739709200551,20.0,193.11,193.1,0.03]
[1739709209360,0.063,193.15,193.1,0.03]
[1739709209679,82.6,193.14,193.1,0.03]
[1739709209866,82.6,193.13,193.1,0.03]
[1739709211093,0.063,193.15,193.1,0.03]
[1739709211498,20.063,193.15,193.1,0.03]
[1739709212310,0.063,193.15,193.1,0.03]
[1739709214316,20.063,193.15,193.1,0.03]
[1739709215621,82.6,193.14,193.1,0.03]
[1739709215793,20.0,193.11,193.1,0.03]
[1739709216315,20.0,193.12,193.1,0.03]
[1739709216986,13.41184853,193.11,193.1,0.03]
[1739709218515,14.41184853,193.11,193.1,0.03]
[1739709218714,15.41184853,193.11,193.1,0.03]
[1739709223539,14.41184853,193.11,193.1,0.03]
[1739709223736,13.41184853,193.11,193.1,0.03]
[1739709224236,15.41184853,193.11,193.1,0.03]
[1739709226027,14.41184853,193.11,193.1,0.03]
[1739709226627,13.41184853,193.11,193.1,0.03]
[1739709227029,14.41184853,193.11,193.1,0.03]
[1739709227224,15.41184853,193.11,193.1,0.03]
[1739709230349,13.41184853,193.11,193.1,0.03]
[1739709233558,14.41184853,193.11,193.1,0.03]
[1739709234060,15.41184853,193.11,193.1,0.03]
[1739709236861,13.41184853,193.11,193.1,0.03]
[1739709237055,20.0,193.12,193.1,0.03]
[1739709237464,2.0,193.11,193.1,0.03]
[1739709237834,15.41184853,193.11,193.1,0.03]
[1739709238659,14.41184853,193.11,193.1,0.03]
[1739709238964,13.41184853,193.11,193.1,0.03]
[1739709240142,14.41184853,193.11,193.1,0.03]
[1739709240360,13.41184853,193.11,193.1,0.03]
[1739709240750,14.41184853,193.11,193.1,0.03]
[1739709240943,15.41184853,193.11,193.1,0.03]
[1739709242480,13.41184853,193.11,193.1,0.03]
[1739709242967,0.063,193.15,193.1,0.03]
[1739709243337,20.0,193.12,193.1,0.03]
[1739709243569,13.41184853,193.13,193.1,0.03]
[1739709244361,0.063,193.15,193.1,0.03]
[1739709245949,20.0,193.14,193.1,0.03]
[1739709246537,0.063,193.15,193.1,0.03]
[1739709246976,20.063,193.15,193.1,0.03]
[1739709247478,0.063,193.15,193.1,0.03]
[1739709251497,82.6,193.14,193.1,0.03]
[1739709252601,20.0,193.11,193.1,0.03]
[1739709253180,0.063,193.15,193.1,0.03]
[1739709253388,20.0,193.11,193.1,0.03]
[1739709254999,20.0,193.14,193.1,0.03]
[1739709256487,13.41184853,193.13,193.1,0.03]
[1739709257309,14.41184853,193.14,193.1,0.03]
[1739709258401,15.41184853,193.14,193.1,0.03]
[1739709258903,15.41184853,193.13,193.1,0.03]
[1739709259107,14.41184853,193.13,193.1,0.03]
[1739709260279,1.0,193.11,193.1,0.03]
[1739709260480,14.41184853,193.11,193.1,0.03]
[1739709261608,16.03004853,193.11,193.1,0.03]
[1739709268091,20.0,193.07,193.05,0.03]
[1739709268489,13.41184853,193.06,193.05,0.03]
[1739709268890,1.0,193.09,193.05,0.03]
[1739709269086,13.41184853,193.08,193.05,0.03]
[1739709269306,14.41184853,193.08,193.05,0.03]
[1739709270887,20.0,193.06,193.05,0.03]
[1739709274291,34.41184853,193.06,193.05,0.03]
[1739709276210,33.41184853,193.06,193.05,0.03]
[1739709276601,20.0,193.09,193.05,0.03]
[1739709277014,8.08559557,193.12,193.05,0.03]
[1739709277192,13.41184853,193.12,193.05,0.03]
[1739709277511,20.0,193.09,193.05,0.03]
[1739709280812,22.00964916,193.15,193.05,0.03]
[1739709281109,20.0,193.11,193.05,0.03]
[1739709281310,33.41184853,193.1,193.05,0.03]
[1739709284112,34.41184853,193.1,193.05,0.03]
[1739709284504,34.47484853,193.1,193.05,0.03]
[1739709285107,33.47484853,193.1,193.05,0.03]
[1739709285606,34.47484853,193.1,193.05,0.03]
[1739709287110,20.0,193.06,193.05,0.03]
[1739709287301,33.41184853,193.06,193.05,0.03]
[1739709289535,1.063,193.1,193.05,0.03]
[1739709289717,13.41184853,193.09,193.05,0.03]
[1739709289918,20.0,193.06,193.05,0.03]
[1739709293937,33.41184853,193.06,193.05,0.03]
[1739709297637,34.41184853,193.06,193.05,0.03]
[1739709298826,35.41184853,193.06,193.05,0.03]
[1739709299616,34.41184853,193.06,193.05,0.03]
[1739709299817,35.41184853,193.06,193.05,0.03]
[1739709300712,65.41184853,193.06,193.05,0.03]
[1739709300930,73.28194853,193.06,193.05,0.03]
[1739709301140,47.92149815,193.06,193.05,0.03]
[1739709301328,1.0,192.99,192.96,0.03]
[1739709301633,13.41184853,192.98,192.96,0.03]
[1739709302016,14.41184853,192.98,192.96,0.03]
[1739709303330,14.41184853,192.97,192.96,0.03]
[1739709307634,13.41184853,192.97,192.96,0.03]
[1739709308238,91.18559557,193.04,192.96,0.03]
[1739709308541,1.0,193.03,192.96,0.03]
[1739709308746,13.41184853,193.02,192.96,0.03]
[1739709310426,20.0,193.0,192.96,0.03]
[1739709310625,20.0,192.97,192.96,0.03]
[1739709313858,20.0,192.99,192.96,0.03]
[1739709314563,13.41184853,192.98,192.96,0.03]
[1739709315170,13.41184853,192.99,192.96,0.03]
[1739709316341,14.41184853,192.99,192.96,0.03]
[1739709316761,13.41184853,192.97,192.96,0.03]
[1739709317087,14.41184853,192.97,192.96,0.03]
[1739709319774,13.41184853,192.97,192.96,0.03]
[1739709320149,14.41184853,192.97,192.96,0.03]
[1739709320352,13.41184853,192.97,192.96,0.03]
[1739709321047,1.0,193.0,192.96,0.03]
[1739709321475,33.41184853,192.97,192.96,0.03]
[1739709324273,14.41184853,192.96,192.86,1.6378]
[1739709324476,13.41184853,192.92,192.86,1.6378]
[1739709325175,82.6,192.91,192.86,1.6378]
[1739709328654,13.41184853,192.98,192.86,1.6378]
[1739709328859,82.6,192.97,192.86,0.6378]
[1739709329361,82.6,192.97,192.86,1.6378]
[1739709329776,82.6,192.96,192.86,1.6378]
[1739709332483,82.6,192.96,192.86,0.6378]
[1739709334468,82.6,192.95,192.86,0.6378]
[1739709335165,20.0,192.92,192.86,0.6378]
[1739709335481,82.6,192.91,192.86,0.6378]
[1739709336488,82.6,192.9,192.86,0.6378]
[1739709337791,82.6,192.89,192.86,0.6378]
[1739709340791,82.6,192.94,192.86,0.6378]
[1739709341092,17.4649333,193.03,192.86,0.6378]
[1739709341093,82.6,193.0,192.87,1.0]
[1739709341396,20.0,192.97,192.87,1.0]
[1739709341602,82.6,192.96,192.88,1.0]
[1739709342106,82.6,192.98,192.91,1.0]
[1739709342275,82.6,192.98,192.92,6.3377]
[1739709342472,82.6,192.98,192.92,7.3377]
[1739709342693,82.6,192.98,192.93,1.5138]
[1739709345694,82.663,192.98,192.93,1.5138]
[1739709347197,0.063,192.98,192.93,1.5138]
[1739709350086,0.063,192.98,192.93,2.5138]
[1739709350292,0.063,192.98,192.94,1.0]
[1739709352909,0.063,192.98,192.93,2.5138]
[1739709354897,0.063,192.98,192.94,1.0]
[1739709361620,0.063,192.98,192.95,1.0]
[1739709363918,0.063,192.98,192.96,20.0]
[1739709364111,0.063,192.98,192.97,1.0]
[1739709374630,0.063,192.98,192.97,14.41184853]
[1739709375233,0.063,192.98,192.97,15.41184853]
[1739709379343,0.063,192.98,192.97,21.54034853]
[1739709379640,0.063,192.98,192.97,22.31722429]
[1739709380815,0.063,192.98,192.97,21.54034853]
[1739709381015,0.063,192.98,192.97,20.54034853]
[1739709381422,0.063,192.98,192.97,21.54034853]
[1739709382143,77.789,193.09,193.01,1.0]
[1739709382443,77.789,193.08,193.01,1.0]
[1739709382738,77.789,193.08,193.0,20.0]
[1739709383041,77.789,193.08,193.01,1.0]
[1739709383337,77.789,193.08,192.96,1.0]
[1739709383543,1.5003,193.06,192.93,3.5138]
[1739709383743,1.5003,193.06,192.94,13.41184853]
[1739709384243,1.5003,193.06,192.95,1.0]
[1739709385131,1.5003,193.06,192.94,14.41184853]
[1739709385341,1.5003,193.06,192.95,1.0]
[1739709385937,77.789,193.05,192.92,7.134]
[1739709386119,77.789,193.04,192.9,1.0]
[1739709386320,77.789,193.04,192.92,20.0]
[1739709386543,77.789,193.04,192.91,13.41184853]
[1739709386843,77.789,193.04,192.92,1.0]
[1739709386844,6.0982,193.03,192.92,1.0]
[1739709387140,6.0982,193.03,192.9,1.0]
[1739709387340,6.0982,193.03,192.91,1.0]
[1739709387642,1.5003,193.02,192.91,1.0]
[1739709388227,77.789,193.01,192.9,20.0]
[1739709388431,77.789,193.0,192.87,1.0]
[1739709388821,77.789,193.0,192.88,21.0]
[1739709389021,77.789,193.0,192.89,1.0]
[1739709392751,77.789,193.0,192.88,20.0]
[1739709394033,77.789,192.99,192.88,20.0]
[1739709394233,1.5003,192.98,192.88,20.0]
[1739709396133,1.5003,192.98,192.89,1.0]
[1739709396335,1.5003,192.98,192.88,20.0]
[1739709398551,77.789,192.97,192.86,0.03]
[1739709398758,6.089,192.95,192.86,0.03]
[1739709402846,77.789,192.96,192.87,20.0]
[1739709403045,77.789,192.96,192.87,21.0]
[1739709405034,77.789,192.96,192.88,1.0]
[1739709405452,1.5003,192.98,192.89,1.0]
[1739709405659,1.5003,192.98,192.9,1.0]
[1739709408053,1.5003,192.98,192.86,1.03]
[1739709408256,77.789,192.97,192.86,0.03]
[1739709408640,77.789,192.97,192.87,20.0]
[1739709409059,77.73669638,192.97,192.87,20.0]
[1739709409248,77.73669638,192.97,192.87,21.0]
[1739709411763,77.73669638,192.96,192.87,21.0]
[1739709413073,77.73669638,192.96,192.87,1.0]
[1739709417753,77.73669638,192.95,192.87,1.0]
[1739709418069,77.73669638,192.95,192.87,1.03]
[1739709418268,77.73669638,192.95,192.88,1.0]
[1739709422673,77.73669638,192.95,192.87,0.03]
[1739709423761,77.73669638,192.94,192.87,0.03]
[1739709424062,77.73669638,192.93,192.87,0.03]
[1739709425681,77.73669638,192.93,192.87,1.03]
[1739709438710,77.73669638,192.93,192.88,1.0]
[1739709441503,77.73669638,192.97,192.88,1.0]
[1739709441708,77.73669638,192.96,192.88,1.0]
[1739709443991,77.73669638,192.96,192.87,0.03]
[1739709445120,6.4965,192.94,192.87,0.03]
[1739709447529,77.73669638,192.93,192.87,0.03]
[1739709447805,77.73669638,192.92,192.87,0.03]
[1739709451525,77.73669638,192.92,192.87,1.03]
[1739709452414,77.73669638,192.92,192.88,1.0]
[1739709453500,1.5356,192.95,192.88,1.0]
[1739709453728,77.73669638,192.96,192.88,1.0]
[1739709453928,77.73669638,192.96,192.89,1.0]
[1739709455426,77.73669638,192.96,192.9,21.0]
[1739709456639,0.063,192.97,192.91,1.0]
[1739709458524,0.063,192.97,192.9,20.0]
[1739709458733,0.063,192.97,192.89,1.0]
[1739709459828,0.063,192.97,192.88,1.0]
[1739709460632,77.73669638,192.96,192.87,0.03]
[1739709460810,77.73669638,192.95,192.87,0.03]
[1739709462028,1.6107,192.94,192.87,0.03]
[1739709462216,79.34739638,192.94,192.87,0.03]
[1739709465332,77.73669638,192.93,192.87,0.03]
[1739709465531,77.73669638,192.92,192.87,0.03]
[1739709471239,77.73669638,192.91,192.87,0.03]
[1739709477339,77.73669638,192.9,192.87,0.03]
[1739709479158,77.73669638,192.89,192.87,0.03]
[1739709479330,77.73669638,192.88,192.87,0.03]
[1739709483142,13.41184853,192.92,192.87,0.03]
[1739709484164,20.0,192.9,192.87,0.03]
[1739709488062,20.0,192.88,192.87,0.03]
[1739709488378,21.6376,192.88,192.87,0.03]
[1739709489259,13.41184853,192.87,192.86,0.03]
[1739709493255,20.0,192.84,192.74,1.0]
[1739709493454,23.72,192.84,192.74,1.0]
[1739709495761,23.72,192.84,192.73,20.0]
[1739709495958,23.72,192.84,192.74,1.0]
[1739709498070,82.6,192.83,192.74,1.0]
[1739709503968,82.6,192.82,192.74,1.0]
[1739709512280,82.6,192.82,192.74,1.03]
[1739709515794,82.6,192.81,192.74,1.03]
[1739709530530,82.6,192.81,192.74,0.03]
[1739709530722,82.6,192.81,192.74,1.03]
[1739709530922,82.6,192.81,192.74,0.03]
[1739709532617,82.6,192.8,192.74,0.03]
[1739709535226,82.6,192.79,192.74,0.03]
[1739709539649,82.6,192.78,192.74,0.03]
[1739709540624,7.935,192.82,192.74,0.03]
[1739709541133,1.5522,192.82,192.74,0.03]
[1739709545446,82.6,192.81,192.74,0.03]
[1739709551462,82.6,192.8,192.74,0.03]
[1739709552267,82.6,192.79,192.74,0.03]
[1739709552551,1.5707,192.77,192.74,0.03]
[1739709553649,20.0,192.75,192.74,0.03]
[1739709554166,1.5707,192.77,192.74,0.03]
[1739709554534,20.0,192.75,192.74,0.03]
[1739709555753,1.5707,192.77,192.74,0.03]
[1739709556657,21.5707,192.77,192.74,0.03]
[1739709560235,21.5707,192.77,192.74,0.03]
[1739709562648,20.0,192.75,192.74,0.03]
[1739709566266,1.5707,192.77,192.74,0.03]
[1739709566559,21.5707,192.77,192.74,0.03]
[1739709567366,1.5707,192.77,192.74,0.03]
[1739709570746,20.0,192.78,192.74,0.03]
[1739709572667,1.5376,192.81,192.74,0.03]
[1739709573261,20.0,192.77,192.74,0.03]
[1739709575454,82.6,192.8,192.74,0.03]
[1739709578371,82.6,192.79,192.74,0.03]
[1739709584069,82.6,192.78,192.74,0.03]
[1739709595975,82.6,192.77,192.74,0.03]
[1739709603682,82.6,192.76,192.74,0.03]
[1739709603903,1.5085,192.75,192.74,0.03]
[1739709604897,21.5085,192.75,192.74,0.03]
[1739709605396,34.92034853,192.75,192.74,0.03]
[1739709605799,64.92034853,192.75,192.74,0.03]
[1739709608195,51.5085,192.75,192.74,0.03]
[1739709608392,21.5085,192.75,192.74,0.03]
[1739709610308,6.1505,192.79,192.74,0.03]
[1739709610608,38.68947628,192.76,192.74,0.03]
[1739709614508,18.68947628,192.76,192.74,0.03]
[1739709616198,38.68947628,192.76,192.74,0.03]
[1739709619789,18.68947628,192.76,192.74,0.03]
[1739709619997,20.0,192.75,192.74,0.03]
[1739709625811,18.68947628,192.76,192.74,0.03]
[1739709630728,38.68947628,192.76,192.74,0.03]
[1739709630917,18.68947628,192.76,192.74,0.03]
[1739709631297,38.68947628,192.76,192.74,0.03]
[1739709631501,18.68947628,192.76,192.74,0.03]
[1739709633112,38.68947628,192.76,192.74,0.03]
[1739709633310,18.68947628,192.76,192.74,0.03]
[1739709638028,38.68947628,192.76,192.74,0.03]
[1739709638241,18.68947628,192.76,192.74,0.03]
[1739709638531,38.68947628,192.76,192.74,0.03]
[1739709638710,18.68947628,192.76,192.74,0.03]
[1739709642430,38.68947628,192.76,192.74,0.03]
[1739709645440,18.68947628,192.76,192.74,0.03]
[1739709646340,38.68947628,192.76,192.74,0.03]
[1739709646641,18.68947628,192.76,192.74,0.03]
[1739709646841,38.68947628,192.76,192.74,0.03]
[1739709647044,18.68947628,192.76,192.74,0.03]
[1739709648846,38.68947628,192.76,192.74,0.03]
[1739709652230,18.68947628,192.76,192.74,0.03]
[1739709659464,38.68947628,192.76,192.74,0.03]
[1739709661568,18.68947628,192.76,192.74,0.03]
[1739709661991,38.68947628,192.76,192.74,0.03]
[1739709668167,18.68947628,192.76,192.74,0.03]
[1739709669057,82.6,192.82,192.74,0.03]
[1739709669263,82.6,192.81,192.74,0.03]
[1739709669669,82.6,192.8,192.74,0.03]
[1739709673277,82.6,192.79,192.74,0.03]
[1739709678852,20.0,192.82,192.74,0.03]
[1739709682181,20.0,192.81,192.74,0.03]
[1739709682770,82.6,192.84,192.74,0.03]
[1739709682970,82.6,192.84,192.75,1.5205]
[1739709683364,82.6,192.84,192.76,6.2719]
[1739709684195,0.063,192.86,192.77,1.0]
[1739709691090,0.063,192.86,192.79,1.0]
[1739709692591,0.063,192.86,192.78,14.41184853]
[1739709692775,0.063,192.86,192.78,13.41184853]
[1739709692980,0.063,192.86,192.78,14.41184853]
[1739709693280,0.063,192.86,192.79,1.0]
[1739709697577,0.063,192.86,192.79,3.06608185]
[1739709697772,0.063,192.86,192.79,1.0]
[1739709698488,0.063,192.86,192.83,1.0]
[1739709698689,0.063,192.86,192.83,7.568]
[1739709703991,0.063,192.86,192.85,20.0]
[1739709704199,0.063,192.86,192.84,14.41184853]
[1739709706300,0.063,192.86,192.85,1.0]
[1739709707196,0.063,192.86,192.85,14.41184853]
[1739709707775,0.063,192.86,192.85,34.41184853]
[1739709708702,0.063,192.86,192.85,33.41184853]
[1739709708872,0.063,192.86,192.85,34.41184853]
[1739709713103,0.063,192.86,192.85,34.44184853]
[1739709714901,0.063,192.86,192.85,14.44184853]
[1739709715210,0.063,192.86,192.85,15.44184853]
[1739709718917,0.063,192.97,192.88,1.0]
[1739709721321,0.063,192.97,192.86,34.41184853]
[1739709721492,0.063,192.97,192.86,33.41184853]
[1739709722095,0.063,192.97,192.87,1.0]
[1739709722505,0.063,192.97,192.86,33.41184853]
[1739709722712,0.063,192.97,192.86,34.41184853]
[1739709724103,0.063,192.97,192.87,1.0]
[1739709726114,0.063,192.97,192.86,33.44184853]
[1739709726724,0.063,192.97,192.87,1.0]
[1739709726910,0.063,192.97,192.86,34.44184853]
[1739709727111,0.063,192.97,192.86,33.44184853]
[1739709727617,0.063,192.97,192.86,34.44184853]
[1739709727817,0.063,192.97,192.86,33.44184853]
[1739709729119,0.063,192.97,192.86,20.03]
[1739709729509,0.063,192.97,192.87,20.0]
[1739709729817,0.063,192.97,192.87,21.0]
[1739709730804,0.063,192.97,192.87,20.0]
[1739709731115,0.063,192.97,192.87,21.0]
[1739709733225,0.063,192.97,192.86,0.03]
[1739709733226,7.8713,192.96,192.86,0.03]
[1739709733527,20.0,192.93,192.86,0.03]
[1739709734199,1.5367,192.94,192.86,0.03]
[1739709735418,1.5367,192.94,192.86,1.03]
[1739709736622,18.7324002,192.97,192.88,14.41184853]
[1739709737826,18.7324002,192.97,192.9,13.41184853]
[1739709738037,18.7324002,192.97,192.9,14.41184853]
[1739709740021,18.7324002,192.97,192.9,13.41184853]
[1739709740525,18.7324002,192.97,192.88,1.0]
[1739709740734,18.7324002,192.97,192.88,20.0]
[1739709741116,18.7324002,192.97,192.88,21.0]
[1739709741626,18.7324002,192.97,192.86,20.03]
[1739709745732,84.1299,192.96,192.86,0.03]
[1739709750445,82.6,192.95,192.86,0.03]
[1739709750817,89.1697,192.94,192.86,0.03]
[1739709751238,1.5299,192.93,192.86,0.03]
[1739709751437,20.0,192.91,192.86,0.03]
[1739709756534,82.6,192.9,192.86,0.03]
[1739709758234,82.6,192.94,192.86,0.03]
[1739709758441,84.2524,192.98,192.87,13.41184853]
[1739709759028,84.2524,192.98,192.86,0.03]
[1739709768361,82.6,192.96,192.86,0.03]
[1739709774265,82.6,192.95,192.86,0.03]
[1739709777854,82.6,192.94,192.86,0.03]
[1739709778055,1.571,192.93,192.86,0.03]
[1739709778982,20.0,192.91,192.86,0.03]
[1739709780674,82.6,192.9,192.86,0.03]
[1739709782476,82.6,192.89,192.86,0.03]
[1739709782662,82.6,192.88,192.86,0.03]
[1739709783574,1.571,192.87,192.86,0.03]
[1739709783781,84.171,192.87,192.86,0.03]
[1739709789073,1.571,192.87,192.86,0.03]
[1739709802472,1.571,192.87,192.74,7.7495]
[1739709807014,20.0,192.83,192.74,7.7495]
[1739709807598,20.0,192.83,192.74,7.7795]
[1739709811392,20.0,192.82,192.74,7.7795]
[1739709812887,82.6,192.81,192.74,7.7795]
[1739709815515,82.6,192.81,192.74,7.7795]
[1739709832132,82.663,192.81,192.74,7.7795]
[1739709834040,82.663,192.81,192.74,6.5457]
[1739709836345,82.663,192.81,192.74,0.03]
[1739709836539,84.2823,192.81,192.74,0.03]
[1739709838444,82.6,192.8,192.74,0.03]
[1739709846026,82.663,192.8,192.74,0.03]
[1739709858550,0.063,192.8,192.75,13.41184853]
[1739709858760,0.063,192.8,192.74,20.03]
[1739709858944,0.063,192.8,192.74,0.03]
[1739709865162,82.226,192.81,192.74,0.03]